bitfinex-derivatives/quotes_ETHF0:USTF0_20230106
["timestamp","ask_amount","ask_price","bid_price","bid_amount"]
[1672995714146,8.59850747,1248.1,1247.9,4.19058629]
[1672995714777,3.2078,1248.0,1247.9,4.19058629]
[1672995714990,5.6059699,1248.0,1247.9,4.19058629]
[1672995715199,5.6059699,1248.0,1247.9,1.79956081]
[1672995716568,2.3981699,1248.0,1247.9,1.79956081]
[1672995716772,5.6059699,1248.0,1247.9,1.79956081]
[1672995718142,5.6059699,1248.0,1247.9,4.19058629]
[1672995721507,5.6059699,1248.0,1247.9,2.39102548]
[1672995721924,5.6059699,1248.0,1247.9,4.19093713]
[1672995722127,5.6059699,1248.0,1247.9,2.39102548]
[1672995722341,5.6059699,1248.0,1247.9,4.19113833]
[1672995722554,5.6059699,1248.0,1247.9,2.39102548]
[1672995722872,5.6059699,1248.0,1247.9,4.19114599]
[1672995723402,5.6059699,1248.0,1247.9,1.80012051]
[1672995723711,5.6059699,1248.0,1247.9,4.19114599]
[1672995724029,5.6059699,1248.0,1247.9,2.39102548]
[1672995727913,8.59850747,1248.0,1247.9,2.39102548]
[1672995729068,5.6059699,1248.0,1247.9,2.39102548]
[1672995729270,5.6059699,1248.0,1247.9,5.38834579]
[1672995729593,5.6059699,1248.0,1247.9,3.81141327]
[1672995730007,5.6059699,1248.0,1247.9,6.80873358]
[1672995730219,8.59850747,1248.0,1247.9,3.81141327]
[1672995730638,6.20033757,1248.0,1247.9,3.81141327]
[1672995730857,6.20033757,1248.0,1247.9,2.39102548]
[1672995731064,2.99253757,1248.0,1247.9,2.39102548]
[1672995731270,6.20033757,1248.0,1247.9,2.39102548]
[1672995731483,8.60211199,1248.0,1247.9,2.39102548]
[1672995731694,6.20033757,1248.0,1247.9,2.39102548]
[1672995732006,8.60211294,1248.0,1247.9,2.39102548]
[1672995732327,6.20033757,1248.0,1247.9,2.39102548]
[1672995735999,2.99253757,1248.0,1247.9,2.39102548]
[1672995736424,6.20033757,1248.0,1247.9,2.39102548]
[1672995738524,2.99253757,1248.0,1247.9,2.39102548]
[1672995739050,6.20033757,1248.0,1247.9,2.39102548]
[1672995739259,8.60269128,1248.0,1247.9,2.39102548]
[1672995739470,8.60269128,1248.0,1247.9,5.38834579]
[1672995740420,5.39489128,1248.0,1247.9,5.38834579]
[1672995740628,8.60269128,1248.0,1247.9,5.38834579]
[1672995741998,5.39489128,1248.0,1247.9,5.38834579]
[1672995742197,8.60269128,1248.0,1247.9,5.38834579]
[1672995742623,5.39489128,1248.0,1247.9,5.38834579]
[1672995742936,8.60269128,1248.0,1247.9,5.38834579]
[1672995743149,8.60269128,1248.0,1247.9,2.99732031]
[1672995743358,5.39489128,1248.0,1247.9,2.99732031]
[1672995743672,5.39489128,1248.0,1247.9,5.4008753]
[1672995743673,8.60269128,1248.0,1247.9,5.4008753]
[1672995743873,5.39489128,1248.0,1247.9,5.4008753]
[1672995744086,8.60269128,1248.0,1247.9,4.4177081]
[1672995744297,8.60269128,1248.0,1247.9,2.99732031]
[1672995744509,6.20033757,1248.0,1247.9,3.82415249]
[1672995744719,8.6028786,1248.0,1247.9,5.40108501]
[1672995745251,5.3950786,1248.0,1247.9,5.40108501]
[1672995745462,8.6028786,1248.0,1247.9,5.40108501]
[1672995745673,6.20033757,1248.0,1247.9,5.40108501]
[1672995745988,8.60290366,1248.0,1247.9,5.40108501]
[1672995746198,6.20033757,1248.0,1247.9,5.40108501]
[1672995746932,2.99253757,1248.0,1247.9,5.40108501]
[1672995747458,6.20033757,1248.0,1247.9,5.40108501]
[1672995747987,8.60313085,1248.0,1247.9,4.4177081]
[1672995748194,8.60313085,1248.0,1247.9,2.99732031]
[1672995748507,8.60328781,1248.0,1247.9,2.99732031]
[1672995748719,2.99253757,1248.0,1247.9,2.99732031]
[1672995749032,8.60326911,1248.0,1247.9,2.99732031]
[1672995749349,5.39546911,1248.0,1247.9,2.99732031]
[1672995749561,8.60326911,1248.0,1247.9,2.99732031]
[1672995749871,6.20033757,1248.0,1247.9,2.99732031]
[1672995750084,6.20033757,1248.0,1247.9,5.40142005]
[1672995751345,2.99253757,1248.0,1247.9,5.40142005]
[1672995751553,6.20033757,1248.0,1247.9,5.40142005]
[1672995752080,2.99253757,1248.0,1247.9,4.4177081]
[1672995752293,6.20033757,1248.0,1247.9,2.99732031]
[1672995752714,6.20033757,1248.0,1247.9,5.40169442]
[1672995753871,6.20033757,1248.0,1247.9,4.4177081]
[1672995754081,6.20033757,1248.0,1247.9,2.99732031]
[1672995754292,6.20033757,1248.0,1247.9,5.40169014]
[1672995754503,6.20033757,1248.0,1247.9,4.4177081]
[1672995755345,6.20033757,1248.0,1247.9,2.99732031]
[1672995755764,8.60308225,1248.0,1247.9,2.99732031]
[1672995755975,8.6031107,1248.0,1247.9,2.99732031]
[1672995756923,6.20033757,1248.0,1247.9,2.99732031]
[1672995757445,6.20033757,1248.0,1247.9,5.40163046]
[1672995759969,6.19421749,1248.0,1247.9,5.40163046]
[1672995760807,2.98641749,1248.0,1247.9,5.40163046]
[1672995761016,6.19421749,1248.0,1247.9,5.40163046]
[1672995762389,6.19421749,1248.0,1247.9,2.99732031]
[1672995763227,2.98641749,1248.0,1247.9,2.99732031]
[1672995763432,6.19421749,1248.0,1247.9,2.99732031]
[1672995765526,2.98641749,1248.0,1247.9,2.99732031]
[1672995765740,6.19421749,1248.0,1247.9,2.99732031]
[1672995769322,6.19421749,1248.0,1247.9,2.40434152]
[1672995770895,2.98641749,1248.0,1247.9,2.40434152]
[1672995771314,6.19421749,1248.0,1247.9,2.40434152]
[1672995771520,6.19421749,1248.0,1247.9,5.40166183]
[1672995772894,6.19421749,1248.0,1247.9,3.82472931]
[1672995773094,6.19421749,1248.0,1247.9,2.40434152]
[1672995773619,6.19421749,1248.0,1247.9,5.40166183]
[1672995778146,8.59659246,1248.0,1247.9,5.40166183]
[1672995778356,3.2078,1248.0,1247.9,4.4177081]
[1672995778563,3.2078,1248.0,1247.9,2.99732031]
[1672995778776,3.59104508,1248.2,1247.9,2.99732031]
[1672995778989,3.2078,1248.0,1247.9,2.99732031]
[1672995779725,3.59104508,1248.2,1247.9,2.99732031]
[1672995779938,5.40444096,1248.0,1247.9,2.99732031]
[1672995780249,8.61223462,1248.0,1247.9,2.99732031]
[1672995782459,5.40443462,1248.0,1247.9,2.99732031]
[1672995782769,8.61223462,1248.0,1247.9,2.99732031]
[1672995783921,5.6098238,1248.0,1247.9,2.99732031]
[1672995784553,2.19368212,1248.0,1247.9,2.99732031]
[1672995784768,3.00241082,1248.2,1248.0,0.31558443]
[1672995785085,3.00241082,1248.3,1248.1,6.82870956]
[1672995785285,6.21021082,1248.4,1248.2,3.82412979]
[1672995785495,6.79884508,1248.4,1248.3,1.20097315]
[1672995785710,6.79884508,1248.4,1248.2,3.0022747]
[1672995785923,6.79884508,1248.4,1248.2,1.20097315]
[1672995786967,3.2078,1248.3,1248.2,1.20097315]
[1672995787815,6.79884508,1248.3,1248.1,3.0022747]
[1672995788020,2.9996218,1248.2,1248.1,3.0022747]
[1672995790653,2.9996218,1248.2,1248.1,1.20097315]
[1672995790864,6.79884508,1248.3,1248.1,1.20097315]
[1672995791177,2.99928857,1248.2,1248.1,3.0022747]
[1672995791387,2.99928857,1248.2,1248.1,1.20097315]
[1672995791598,2.99928857,1248.2,1248.1,3.0022747]
[1672995791809,2.99929285,1248.2,1248.1,1.20097315]
[1672995792855,6.79884508,1248.3,1248.1,1.20097315]
[1672995793070,14.80684508,1248.3,1248.1,1.20097315]
[1672995793912,3.2078,1248.2,1248.1,1.20097315]
[1672995795911,11.59904508,1248.3,1248.1,1.20097315]
[1672995796227,3.2078,1248.2,1248.1,1.20097315]
[1672995798641,6.79884508,1248.2,1248.0,1.51655758]
[1672995798851,11.00200431,1248.2,1248.0,0.31558443]
[1672995799381,6.79884508,1248.2,1248.0,0.31558443]
[1672995799905,11.00200431,1248.2,1248.0,0.31558443]
[1672995800641,7.79420431,1248.2,1248.0,0.31558443]
[1672995800852,3.2078,1248.1,1248.0,0.31558443]
[1672995802644,6.20592594,1248.1,1248.0,1.51655758]
[1672995803267,2.99812594,1248.1,1248.0,1.51655758]
[1672995803472,6.20592594,1248.1,1248.0,1.51655758]
[1672995805364,2.99812594,1248.1,1248.0,1.51655758]
[1672995805580,6.20592594,1248.1,1248.0,1.51655758]
[1672995807464,2.99812594,1248.1,1248.0,1.51655758]
[1672995807676,6.20592594,1248.1,1248.0,1.51655758]
[1672995807886,2.99812594,1248.1,1248.0,1.51655758]
[1672995808315,6.20592594,1248.1,1248.0,1.51655758]
[1672995808627,2.99812594,1248.1,1248.0,1.51655758]
[1672995809682,6.20592594,1248.1,1248.0,1.51655758]
[1672995813470,2.99812594,1248.1,1248.0,1.51655758]
[1672995813681,6.20592594,1248.1,1248.0,1.51655758]
[1672995814627,2.99812594,1248.1,1248.0,1.51655758]
[1672995815255,6.20592594,1248.1,1248.0,1.51655758]
[1672995816625,3.2078,1248.1,1248.0,0.31558443]
[1672995817252,3.2078,1248.1,1248.0,1.51655758]
[1672995817464,3.2078,1248.1,1248.0,0.31558443]
[1672995818200,3.59104508,1248.2,1248.0,0.31558443]
[1672995818617,3.2078,1248.1,1248.0,0.31558443]
[1672995819138,3.59104508,1248.2,1248.0,0.31558443]
[1672995819353,3.2078,1248.1,1248.0,0.31558443]
[1672995819668,6.20414549,1248.1,1248.0,0.31558443]
[1672995819879,6.20414549,1248.1,1248.0,1.51655758]
[1672995821349,2.99634549,1248.1,1248.0,1.51655758]
[1672995821564,6.20414549,1248.1,1248.0,1.51655758]
[1672995822722,2.99634549,1248.1,1248.0,1.51655758]
[1672995823038,6.20414549,1248.1,1248.0,1.51655758]
[1672995825032,3.2078,1248.1,1248.0,1.51655758]
[1672995825455,3.59104508,1248.2,1248.0,1.51655758]
[1672995825665,3.2078,1248.1,1248.0,1.51655758]
[1672995826714,3.59104508,1248.2,1248.0,1.51655758]
[1672995827028,3.2078,1248.1,1248.0,1.51655758]
[1672995829236,7.79420431,1248.2,1248.0,1.51655758]
[1672995829446,3.2078,1248.1,1248.0,1.51655758]
[1672995829650,7.79420431,1248.2,1248.0,1.51655758]
[1672995829860,3.2078,1248.1,1248.0,1.51655758]
[1672995831333,3.2078,1248.1,1248.0,3.31814658]
[1672995832700,3.2078,1248.1,1248.0,2.11688598]
[1672995832910,3.2078,1248.1,1248.0,3.31843646]
[1672995833225,6.79884508,1248.1,1248.0,1.51713491]
[1672995834912,6.79884508,1248.1,1248.0,3.31843646]
[1672995836485,3.59104508,1248.1,1248.0,3.31843646]
[1672995836696,6.79884508,1248.1,1248.0,3.31843646]
[1672995837119,6.79884508,1248.1,1248.0,1.51713491]
[1672995838380,3.59104508,1248.1,1248.0,1.51713491]
[1672995838589,6.79884508,1248.1,1248.0,1.51713491]
[1672995841637,3.59104508,1248.1,1248.0,1.51713491]
[1672995841845,6.79884508,1248.1,1248.0,1.51713491]
[1672995842267,6.79884508,1248.1,1248.0,1.43700993]
[1672995842475,6.79884508,1248.1,1248.0,0.23545945]
[1672995842476,11.00200431,1248.1,1248.0,0.23545945]
[1672995842893,7.41095923,1248.1,1248.0,0.23545945]
[1672995844260,4.20315923,1248.1,1248.0,0.23545945]
[1672995844475,7.41095923,1248.1,1248.0,0.23545945]
[1672995844672,6.80614674,1248.1,1248.0,0.23545945]
[1672995849209,3.59834674,1248.1,1248.0,0.23545945]
[1672995849626,6.80614674,1248.1,1248.0,0.23545945]
[1672995851095,6.80614674,1248.1,1248.0,1.43700993]
[1672995851308,6.80614674,1248.1,1248.0,0.23545945]
[1672995851836,6.80614674,1248.1,1248.0,1.43700993]
[1672995852986,6.80614674,1248.1,1248.0,0.23545945]
[1672995854250,6.80614674,1248.1,1248.0,1.43700993]
[1672995855408,3.2078,1248.1,1248.0,1.43700993]
[1672995856246,3.59834674,1248.1,1248.0,1.43700993]
[1672995856453,6.80614674,1248.1,1248.0,1.43700993]
[1672995858868,3.59834674,1248.1,1248.0,1.43700993]
[1672995859082,6.80614674,1248.1,1248.0,1.43700993]
[1672995859294,3.2078,1248.1,1248.0,1.43700993]
[1672995860132,6.80614674,1248.1,1248.0,1.43700993]
[1672995864128,3.59834674,1248.1,1248.0,1.43700993]
[1672995864441,6.80614674,1248.1,1248.0,1.43700993]
[1672995864652,3.59834674,1248.1,1248.0,1.43700993]
[1672995864865,6.80614674,1248.1,1248.0,1.43700993]
[1672995865075,3.59834674,1248.1,1248.0,1.43700993]
[1672995865285,6.80614674,1248.1,1248.0,1.43700993]
[1672995866020,3.59834674,1248.1,1248.0,1.43700993]
[1672995866231,6.80614674,1248.1,1248.0,1.43700993]
[1672995866967,3.59834674,1248.1,1248.0,1.43700993]
[1672995867178,6.80614674,1248.1,1248.0,1.43700993]
[1672995868990,3.59834674,1248.1,1248.0,1.43700993]
[1672995869200,6.80614674,1248.1,1248.0,1.43700993]
[1672995869406,3.59834674,1248.1,1248.0,1.43700993]
[1672995869616,6.80614674,1248.1,1248.0,1.43700993]
[1672995871409,14.81414674,1248.1,1248.0,1.43700993]
[1672995871834,11.60634674,1248.1,1248.0,1.43700993]
[1672995872049,14.81414674,1248.1,1248.0,1.43700993]
[1672995872779,11.60634674,1248.1,1248.0,1.43700993]
[1672995872988,14.81414674,1248.1,1248.0,0.23545945]
[1672995873196,19.01730597,1248.1,1248.0,0.23545945]
[1672995873401,15.41895923,1248.1,1248.0,0.23545945]
[1672995877819,12.21115923,1248.1,1248.0,0.23545945]
[1672995878020,15.41895923,1248.1,1248.0,0.23545945]
[1672995878335,12.21115923,1248.1,1248.0,0.23545945]
[1672995878545,15.41895923,1248.1,1248.0,0.23545945]
[1672995879069,12.21115923,1248.1,1248.0,0.23545945]
[1672995879279,15.41895923,1248.1,1248.0,0.23545945]
[1672995885990,19.01424521,1248.1,1248.0,0.23545945]
[1672995886301,14.81108598,1248.1,1248.0,0.23545945]
[1672995886713,11.60328598,1248.1,1248.0,0.23545945]
[1672995886925,14.81108598,1248.1,1248.0,0.23545945]
[1672995887350,19.01424521,1248.1,1248.0,0.23545945]
[1672995887563,14.81108598,1248.1,1248.0,0.23545945]
[1672995888293,11.60328598,1248.1,1248.0,0.23545945]
[1672995888509,14.81108598,1248.1,1248.0,0.23545945]
[1672995889244,19.01424521,1248.1,1248.0,0.23545945]
[1672995891244,15.41895923,1248.1,1248.0,0.23545945]
[1672995893765,12.21115923,1248.1,1248.0,0.23545945]
[1672995894285,19.01386806,1248.1,1248.0,0.23545945]
[1672995894503,14.81070883,1248.1,1248.0,0.23545945]
[1672995895342,19.01386806,1248.1,1248.0,0.23545945]
[1672995896078,15.80606806,1248.1,1248.0,0.23545945]
[1672995896285,19.01386806,1248.1,1248.0,0.23545945]
[1672995897026,15.41895923,1248.1,1248.0,0.23545945]
[1672995897338,12.21115923,1248.1,1248.0,0.23545945]
[1672995897547,19.01412021,1248.1,1248.0,0.23545945]
[1672995897865,15.80632021,1248.1,1248.0,0.23545945]
[1672995898180,12.21115923,1248.1,1248.0,0.23545945]
[1672995898390,15.41895923,1248.1,1248.0,0.23545945]
[1672995902802,15.41895923,1248.1,1248.0,0.13930945]
[1672995903008,11.2158,1248.1,1248.0,0.13930945]
[1672995903538,16.01195222,1248.1,1248.0,0.13930945]
[1672995904167,12.80415222,1248.1,1248.0,0.13930945]
[1672995904382,16.01195222,1248.1,1248.0,0.13930945]
[1672995905120,12.80415222,1248.1,1248.0,0.13930945]
[1672995905435,16.01195222,1248.1,1248.0,0.13930945]
[1672995907118,12.80415222,1248.1,1248.0,0.13930945]
[1672995907328,16.01195222,1248.1,1248.0,0.13930945]
[1672995908588,16.01195222,1248.1,1247.8,1.20155048]
[1672995908903,3.2078,1247.9,1247.8,1.20155048]
[1672995909958,15.79846634,1248.0,1247.8,1.20155048]
[1672995910168,3.2078,1247.9,1247.8,1.20155048]
[1672995910801,6.80339985,1247.9,1247.8,1.20155048]
[1672995911637,14.81139985,1247.9,1247.8,1.20155048]
[1672995912274,11.60359985,1247.9,1247.8,1.20155048]
[1672995912474,14.81139985,1247.9,1247.8,1.20155048]
[1672995912800,11.60359985,1247.9,1247.8,1.20155048]
[1672995913001,14.81139985,1247.9,1247.8,1.20155048]
[1672995913209,14.81139985,1247.9,1247.7,3.00285203]
[1672995913420,2.99707273,1247.8,1247.7,3.00285203]
[1672995914686,6.20487273,1247.8,1247.7,3.00285203]
[1672995915529,2.99707273,1247.8,1247.7,3.00285203]
[1672995915737,6.20487273,1247.8,1247.7,3.00285203]
[1672995916159,2.99707273,1247.8,1247.7,3.00285203]
[1672995916370,6.20487273,1247.8,1247.7,3.00285203]
[1672995917941,2.99707273,1247.8,1247.7,3.00285203]
[1672995918159,6.20487273,1247.8,1247.7,3.00285203]
[1672995922150,2.99707273,1247.8,1247.7,3.00285203]
[1672995922360,6.20487273,1247.8,1247.7,3.00285203]
[1672995923096,2.99707273,1247.8,1247.7,3.00285203]
[1672995923298,6.20487273,1247.8,1247.7,1.20155048]
[1672995925818,6.20487273,1247.8,1247.7,3.00285203]
[1672995926673,2.99707273,1247.8,1247.7,3.00285203]
[1672995926986,6.20487273,1247.8,1247.7,3.00285203]
[1672995928352,2.99707273,1247.8,1247.7,3.00285203]
[1672995928660,6.20487273,1247.8,1247.7,3.00285203]
[1672995930660,2.99707273,1247.8,1247.7,3.00285203]
[1672995930871,6.20487273,1247.8,1247.7,3.00285203]
[1672995935504,2.99707273,1247.8,1247.7,3.00285203]
[1672995935917,6.20487273,1247.8,1247.7,3.00285203]
[1672995936342,3.2078,1247.8,1247.7,1.80130155]
[1672995936969,6.20489285,1247.8,1247.7,1.80130155]
[1672995937174,6.20485884,1247.8,1247.7,1.80130155]
[1672995938124,11.60359985,1247.9,1247.7,1.80130155]
[1672995938338,3.2078,1247.8,1247.7,1.80130155]
[1672995940756,11.60359985,1247.9,1247.7,1.80130155]
[1672995940964,11.60359985,1247.9,1247.8,1.2020591]
[1672995941277,14.81139985,1247.9,1247.8,1.2020591]
[1672995948946,19.00626634,1247.9,1247.8,1.2020591]
[1672995949156,15.79846634,1247.9,1247.8,1.2020591]
[1672995949364,19.00626634,1247.9,1247.7,3.00336065]
[1672995949999,3.59559985,1247.8,1247.7,3.00336065]
[1672995951054,6.80339985,1247.8,1247.7,3.00336065]
[1672995952522,3.59559985,1247.8,1247.7,3.00336065]
[1672995952732,6.80339985,1247.8,1247.7,3.00336065]
[1672995952944,3.2078,1247.8,1247.7,3.00336065]
[1672995953255,6.80339985,1247.8,1247.7,3.00336065]
[1672995954940,3.59559985,1247.8,1247.7,3.00336065]
[1672995955255,6.80339985,1247.8,1247.7,3.00336065]
[1672995956300,3.2078,1247.8,1247.7,1.80130155]
[1672995956517,6.20594167,1247.8,1247.7,2.403742]
[1672995966390,6.20594167,1247.8,1247.7,4.20619459]
[1672995967132,6.20594167,1247.8,1247.7,2.403742]
[1672995967341,6.20594167,1247.8,1247.7,4.20619464]
[1672995967549,6.20594167,1247.8,1247.7,4.20619533]
[1672995968068,6.20594167,1247.8,1247.7,4.20050255]
[1672995968280,2.99814167,1247.8,1247.7,4.20050255]
[1672995968490,6.20594167,1247.8,1247.7,4.20050255]
[1672995971653,2.99814167,1247.8,1247.7,4.20050255]
[1672995971855,6.20594167,1247.8,1247.7,4.20050255]
[1672995972172,2.99814167,1247.8,1247.7,4.20050255]
[1672995972585,6.20594167,1247.8,1247.7,4.20050255]
[1672995974484,2.99814167,1247.8,1247.7,4.20050255]
[1672995974904,6.20594167,1247.8,1247.7,4.20050255]
[1672995975636,6.20594167,1247.8,1247.7,1.80245333]
[1672995980156,2.99814167,1247.8,1247.7,1.80245333]
[1672995980369,6.20594167,1247.8,1247.7,1.80245333]
[1672995980997,2.99814167,1247.8,1247.7,1.80245333]
[1672995981313,6.20594167,1247.8,1247.7,1.80245333]
[1672995983202,2.99814167,1247.8,1247.7,1.80245333]
[1672995983521,6.20594167,1247.8,1247.7,1.80245333]
[1672995984256,6.20594167,1247.8,1247.7,3.00397577]
[1672995985839,6.20594167,1247.8,1247.7,1.80245333]
[1672995986356,6.20594167,1247.8,1247.7,3.00400812]
[1672995987093,2.99814167,1247.8,1247.7,3.00400812]
[1672995987410,6.20594167,1247.8,1247.7,3.00400812]
[1672995987937,2.99814167,1247.8,1247.7,3.00400812]
[1672995988351,6.20594167,1247.8,1247.7,3.00400812]
[1672995988665,6.20594167,1247.8,1247.7,1.80245333]
[1672995988886,6.20594167,1247.8,1247.7,3.00400602]
[1672995989293,2.99814167,1247.8,1247.7,3.00400602]
[1672995989506,6.20594167,1247.8,1247.7,3.00400602]
[1672995989711,2.99814167,1247.8,1247.7,3.00400602]
[1672995990141,6.20594167,1247.8,1247.7,3.00400602]
[1672995990558,3.2078,1247.8,1247.7,3.00400602]
[1672995990772,3.59559985,1247.9,1247.7,3.00400602]
[1672995990984,3.2078,1247.8,1247.7,3.00400602]
[1672995992348,3.59559985,1247.9,1247.7,3.00400602]
[1672995992560,3.2078,1247.8,1247.7,3.00400602]
[1672995993505,3.2078,1247.8,1247.7,1.80245333]
[1672995994870,6.20663735,1247.8,1247.7,1.80245333]
[1672995995300,3.2078,1247.8,1247.7,1.80245333]
[1672995996561,3.59559985,1247.9,1247.7,1.80245333]
[1672995996769,3.59559985,1247.9,1247.8,1.20195007]
[1672995997085,6.80339985,1247.9,1247.8,1.20195007]
[1672995997300,3.59559985,1247.9,1247.8,1.20195007]
[1672995998244,6.80339985,1247.9,1247.8,1.20195007]
[1672995998559,3.59559985,1247.9,1247.8,1.20195007]
[1672995998768,6.80339985,1247.9,1247.8,1.20195007]
[1672995999602,3.59559985,1247.9,1247.8,1.20195007]
[1672996000030,6.80339985,1247.9,1247.8,1.20195007]
[1672996000977,3.59559985,1247.9,1247.8,1.20195007]
[1672996001503,6.80339985,1247.9,1247.8,1.20195007]
[1672996002855,14.81139985,1247.9,1247.7,3.0044034]
[1672996003070,19.00626634,1247.9,1247.7,3.0044034]
[1672996006549,14.81139985,1247.9,1247.7,3.0044034]
[1672996008543,11.60359985,1247.9,1247.7,3.0044034]
[1672996008752,3.2078,1247.8,1247.7,3.0044034]
[1672996008963,11.60359985,1247.9,1247.7,3.0044034]
[1672996009173,3.2078,1247.8,1247.7,3.0044034]
[1672996009805,11.60359985,1247.9,1247.7,3.0044034]
[1672996010225,3.2078,1247.8,1247.7,3.0044034]
[1672996010539,3.2078,1247.8,1247.7,1.80245333]
[1672996010963,3.2078,1247.8,1247.7,3.00448872]
[1672996011592,11.60359985,1247.9,1247.7,3.00448872]
[1672996011802,3.2078,1247.8,1247.7,3.00448872]
[1672996012327,11.60359985,1247.9,1247.7,3.00448872]
[1672996012539,3.2078,1247.8,1247.7,3.00448872]
[1672996012748,3.2078,1247.8,1247.7,1.80245333]
[1672996013905,11.60359985,1247.9,1247.7,1.80245333]
[1672996014117,11.60359985,1247.9,1247.8,1.20207513]
[1672996014327,14.81139985,1247.9,1247.8,1.20207513]
[1672996016010,11.60359985,1247.9,1247.8,1.20207513]
[1672996016220,14.81139985,1247.9,1247.8,1.20207513]
[1672996016753,11.60359985,1247.9,1247.8,1.20207513]
[1672996017059,14.81139985,1247.9,1247.8,1.20207513]
[1672996017687,14.81139985,1247.9,1247.7,3.00452846]
[1672996017897,19.00626634,1247.9,1247.7,3.00452846]
[1672996018220,15.79846634,1247.9,1247.8,1.20207513]
[1672996018425,19.00626634,1247.9,1247.8,1.20207513]
[1672996019166,14.81139985,1247.9,1247.8,1.20207513]
[1672996020734,19.00626634,1247.9,1247.8,1.20207513]
[1672996020948,19.00626634,1247.9,1247.7,1.80245333]
[1672996020949,19.00626634,1247.9,1247.7,3.00452846]
[1672996021157,3.59559985,1247.8,1247.7,3.00452846]
[1672996021684,19.00626634,1247.9,1247.7,3.00452846]
[1672996023577,3.59559985,1247.8,1247.7,3.00452846]
[1672996023787,6.80339985,1247.8,1247.7,3.00452846]
[1672996024102,3.59559985,1247.8,1247.7,3.00452846]
[1672996024317,6.80339985,1247.8,1247.7,3.00452846]
[1672996025146,3.2078,1247.8,1247.7,3.00452846]
[1672996025466,6.80339985,1247.8,1247.7,3.00452846]
[1672996025674,3.2078,1247.8,1247.7,3.00452846]
[1672996025996,15.79846634,1247.9,1247.7,3.00452846]
[1672996026199,3.2078,1247.8,1247.7,3.00452846]
[1672996026517,3.2078,1247.8,1247.7,3.0047207]
[1672996027044,15.79846634,1247.9,1247.7,3.0047207]
[1672996027253,3.2078,1247.8,1247.7,3.0047207]
[1672996028833,3.2078,1247.8,1247.7,1.80245333]
[1672996029042,3.2078,1247.8,1247.7,3.00470277]
[1672996030197,15.79846634,1247.9,1247.7,3.00470277]
[1672996030404,3.2078,1247.8,1247.7,3.00470277]
[1672996030720,15.79846634,1247.9,1247.7,3.00470277]
[1672996030933,3.2078,1247.8,1247.7,3.00470277]
[1672996032832,15.79846634,1247.9,1247.7,3.00470277]
[1672996033043,3.2078,1247.8,1247.7,3.00470277]
[1672996033361,15.79846634,1247.9,1247.7,3.00470277]
[1672996033568,3.2078,1247.8,1247.7,3.00470277]
[1672996033982,15.79846634,1247.9,1247.7,3.00470277]
[1672996034193,3.2078,1247.8,1247.7,3.00470277]
[1672996035673,3.2078,1247.8,1247.7,1.80245333]
[1672996035980,3.2078,1247.8,1247.7,3.00470206]
[1672996036509,6.80339985,1247.8,1247.7,3.00470206]
[1672996036828,3.2078,1247.8,1247.7,3.00470206]
[1672996037560,6.80339985,1247.8,1247.7,3.00470206]
[1672996037981,3.59559985,1247.8,1247.7,3.00470206]
[1672996038512,6.80339985,1247.8,1247.7,3.00470206]
[1672996039766,3.59559985,1247.8,1247.7,3.00470206]
[1672996039981,6.80339985,1247.8,1247.7,3.00470206]
[1672996040293,3.59559985,1247.8,1247.7,3.00470206]
[1672996040506,6.80339985,1247.8,1247.7,3.00470206]
[1672996043341,6.80339985,1247.8,1247.7,1.20224873]
[1672996044917,6.80339985,1247.8,1247.7,3.00470206]
[1672996045653,3.59559985,1247.8,1247.7,3.00470206]
[1672996045967,6.80339985,1247.8,1247.7,3.00470206]
[1672996047125,3.59559985,1247.8,1247.7,3.00470206]
[1672996047329,6.80339985,1247.8,1247.7,3.00470206]
[1672996048906,3.59559985,1247.8,1247.7,3.00470206]
[1672996049119,6.80339985,1247.8,1247.7,3.00470206]
[1672996050172,3.59559985,1247.8,1247.7,3.00470206]
[1672996050593,6.80339985,1247.8,1247.7,3.00470206]
[1672996053639,6.80339985,1247.8,1247.7,1.20224873]
[1672996054694,3.59559985,1247.8,1247.7,1.20224873]
[1672996054904,6.80339985,1247.8,1247.7,1.20224873]
[1672996055115,7.40266649,1247.8,1247.6,3.0004524]
[1672996055312,11.00211573,1247.8,1247.6,3.0004524]
[1672996055528,19.01011573,1247.8,1247.6,3.0004524]
[1672996056163,15.80231573,1247.8,1247.6,3.0004524]
[1672996056482,3.2078,1247.7,1247.6,1.80245333]
[1672996057527,11.60744924,1247.8,1247.6,1.80245333]
[1672996058054,3.2078,1247.7,1247.6,1.80245333]
[1672996059522,3.2078,1247.7,1247.5,4.20635353]
[1672996059732,2.99828963,1247.6,1247.5,2.4039002]
[1672996060383,2.99828963,1247.6,1247.5,4.20672907]
[1672996060694,2.99828963,1247.6,1247.5,2.4039002]
[1672996061105,6.20608963,1247.6,1247.5,2.4039002]
[1672996061330,6.20608963,1247.6,1247.5,4.20648847]
[1672996062481,2.99828963,1247.6,1247.5,4.20648847]
[1672996062686,6.20608963,1247.6,1247.5,4.20648847]
[1672996062897,2.99828963,1247.6,1247.5,4.20648847]
[1672996063216,6.20608963,1247.6,1247.5,4.20648847]
[1672996063531,6.20608963,1247.6,1247.5,1.80258827]
[1672996063952,2.99828963,1247.6,1247.5,1.80258827]
[1672996064362,6.20608963,1247.6,1247.5,1.80258827]
[1672996065737,6.20608963,1247.6,1247.5,4.20648847]
[1672996067309,2.99828963,1247.6,1247.5,4.20648847]
[1672996067524,6.20608963,1247.6,1247.5,4.20648847]
[1672996068048,6.20608963,1247.6,1247.5,1.80258827]
[1672996069938,2.99828963,1247.6,1247.5,1.80258827]
[1672996070152,6.20608963,1247.6,1247.5,1.80258827]
[1672996070365,2.99828963,1247.6,1247.5,1.80258827]
[1672996070572,6.20608963,1247.6,1247.5,1.80258827]
[1672996072155,2.99828963,1247.6,1247.5,1.80258827]
[1672996072364,6.20608963,1247.6,1247.5,1.80258827]
[1672996072785,6.20608963,1247.6,1247.5,4.20648847]
[1672996073522,6.20608963,1247.6,1247.5,1.80258827]
[1672996074254,2.99828963,1247.6,1247.5,4.20648847]
[1672996074457,6.20608963,1247.6,1247.5,1.80258827]
[1672996075201,2.99828963,1247.6,1247.5,1.80258827]
[1672996075732,6.20608963,1247.6,1247.5,1.80258827]
[1672996076461,2.99828963,1247.6,1247.5,1.80258827]
[1672996076776,6.20608963,1247.6,1247.5,4.20648847]
[1672996077093,6.20608963,1247.6,1247.5,1.80258827]
[1672996077514,3.2078,1247.6,1247.5,3.82481617]
[1672996077824,3.2078,1247.6,1247.5,3.82475504]
[1672996078034,6.20608963,1247.6,1247.5,3.82475504]
[1672996078249,3.2078,1247.6,1247.5,2.4039002]
[1672996079301,6.20608963,1247.6,1247.5,2.4039002]
[1672996079613,6.20608963,1247.6,1247.5,1.80238212]
[1672996080021,3.2078,1247.6,1247.5,2.4039002]
[1672996080240,2.99828963,1247.7,1247.5,2.4039002]
[1672996080450,2.99828963,1247.7,1247.6,4.20611985]
[1672996080656,2.99828963,1247.7,1247.6,1.80221965]
[1672996081499,6.20608963,1247.7,1247.6,1.80221965]
[1672996082132,2.99828963,1247.7,1247.6,1.80221965]
[1672996082339,6.20608963,1247.7,1247.6,1.80221965]